bitfinex-derivatives/quotes_BTCF0:USTF0_20250827
["timestamp","ask_amount","ask_price","bid_price","bid_amount"]
[1756307976204,0.3402155,112070.0,112060.0,0.3718]
[1756307980696,0.79800241,112070.0,112060.0,0.3718]
[1756307981093,0.7002155,112070.0,112060.0,0.011]
[1756307981402,0.0902155,112070.0,112060.0,1.14881031]
[1756307982398,0.0902155,112070.0,112060.0,1.21716]
[1756307982595,0.52800241,112070.0,112060.0,0.3718]
[1756307982805,0.52800241,112070.0,112060.0,1.21712]
[1756307983197,0.52800241,112070.0,112060.0,0.3718]
[1756307983392,1.25880241,112070.0,112060.0,0.011]
[1756307983804,0.90880241,112070.0,112060.0,0.011]
[1756307984598,1.75408241,112070.0,112060.0,0.011]
[1756307984998,1.73408241,112070.0,112060.0,0.011]
[1756307985206,1.3162955,112070.0,112060.0,0.011]
[1756307985407,1.75408241,112070.0,112060.0,0.011]
[1756307985593,2.30408241,112070.0,112060.0,0.011]
[1756307985793,1.60700241,112070.0,112060.0,0.001]
[1756307985997,2.45220241,112070.0,112060.0,0.001]
[1756307986297,2.47004828,112070.0,112060.0,0.001]
[1756307986495,2.32184828,112070.0,112060.0,0.001]
[1756307986697,2.30400241,112070.0,112060.0,0.001]
[1756307987104,2.32223701,112070.0,112060.0,0.001]
[1756307987607,1.47703701,112070.0,112060.0,0.001]
[1756307987810,2.32223701,112070.0,112060.0,0.001]
[1756307989413,2.1222529,112070.0,112060.0,0.001]
[1756307989706,1.11484363,112070.0,112060.0,0.001]
[1756307990105,1.95992363,112070.0,112060.0,0.001]
[1756307990812,1.11484363,112070.0,112060.0,0.001]
[1756307991108,1.52209672,112070.0,112060.0,0.001]
[1756307991311,1.95988363,112070.0,112060.0,0.001]
[1756307991513,1.63988363,112070.0,112060.0,0.001]
[1756307992111,1.96988363,112070.0,112060.0,0.001]
[1756307992606,1.53209672,112070.0,112060.0,0.001]
[1756307992814,1.04205672,112070.0,112060.0,0.88881031]
[1756307993109,0.19705672,112070.0,112060.0,0.88881031]
[1756307993317,0.10705672,112070.0,112060.0,0.88881031]
[1756307994709,0.10705672,112070.0,112060.0,0.3618]
[1756307994909,0.54484363,112070.0,112060.0,0.3618]
[1756307996515,1.53796363,112070.0,112060.0,0.3618]
[1756307996715,0.69304363,112070.0,112060.0,0.3618]
[1756307996916,0.10705672,112070.0,112060.0,0.4510234]
[1756307997119,0.10705672,112070.0,112060.0,1.13881031]
[1756307998010,0.10705672,112070.0,112060.0,1.04958691]
[1756307998210,0.10705672,112070.0,112060.0,1.05158691]
[1756307998416,0.10705672,112070.0,112060.0,1.14081031]
[1756307999113,0.54484363,112070.0,112060.0,0.6138]
[1756307999306,0.54484363,112070.0,112060.0,0.6128]
[1756307999511,0.54484363,112070.0,112060.0,0.6138]
[1756308000208,0.87484363,112070.0,112060.0,0.3638]
[1756308000517,0.92484363,112070.0,112060.0,0.3638]
[1756308000718,0.89484363,112070.0,112060.0,0.003]
[1756308001016,1.05304363,112070.0,112060.0,0.003]
[1756308001214,1.30304363,112070.0,112060.0,0.003]
[1756308001415,1.15484363,112070.0,112060.0,0.003]
[1756308002019,1.15484363,112070.0,112060.0,0.001]
[1756308002420,0.79484363,112070.0,112060.0,0.001]
[1756308002922,1.48564363,112070.0,112060.0,0.001]
[1756308003322,0.0892314,112050.0,112040.0,0.1595181]
[1756308003528,0.0892393,112040.0,112030.0,0.3608]
[1756308003724,0.52702621,112040.0,112030.0,0.4108]
[1756308004018,0.0892473,112030.0,112020.0,0.3608]
[1756308004225,0.0892553,112020.0,112010.0,0.3608]
[1756308004426,0.52704221,112020.0,112010.0,0.4208]
[1756308004920,0.0892553,112020.0,112010.0,0.4208]
[1756308005128,0.10173816,112020.0,112010.0,0.4208]
[1756308005319,0.09773816,112020.0,112010.0,0.4208]
[1756308006020,0.09673816,112020.0,112010.0,0.4208]
[1756308006416,0.09673816,112020.0,112010.0,1.27372535]
[1756308006730,0.09673816,112020.0,112010.0,1.27672535]
[1756308006918,0.0892521,112030.0,112020.0,0.0892511]
[1756308007119,0.0892521,112030.0,112020.0,1.80839325]
[1756308007325,0.0892473,112030.0,112020.0,2.05839225]
[1756308007513,0.0892473,112030.0,112020.0,0.3608]
[1756308007719,0.0892473,112030.0,112020.0,1.20548]
[1756308008119,0.0892473,112030.0,112020.0,1.2947353]
[1756308008735,0.0892473,112030.0,112020.0,1.5447353]
[1756308009328,0.0892473,112030.0,112020.0,0.7020553]
[1756308009527,0.0892473,112030.0,112020.0,1.5467353]
[1756308009827,0.10156288,112030.0,112020.0,1.5467353]
[1756308010331,0.01231558,112030.0,112020.0,2.06039745]
[1756308010533,0.0892429,112040.0,112030.0,0.0892473]
[1756308010733,0.0892429,112040.0,112030.0,0.96370945]
[1756308011329,0.0892429,112040.0,112030.0,0.4500473]
[1756308011626,0.0892429,112040.0,112030.0,1.20544]
[1756308012027,0.0892429,112040.0,112030.0,1.20644]
[1756308012222,0.60290505,112040.0,112030.0,0.3618]
[1756308012833,0.60290505,112040.0,112030.0,0.3628]
[1756308013333,0.85290505,112040.0,112030.0,0.3628]
[1756308013532,0.85290505,112040.0,112030.0,0.002]
[1756308013733,0.86537368,112040.0,112030.0,0.002]
[1756308013932,0.61537368,112040.0,112030.0,0.4520473]
[1756308014133,0.10171153,112040.0,112030.0,2.06030945]
[1756308015129,0.10171153,112040.0,112030.0,1.5466473]
[1756308015433,0.10171153,112040.0,112030.0,1.4574]
[1756308015624,0.10171153,112040.0,112030.0,0.3628]
[1756308016028,0.10171153,112040.0,112030.0,1.20736]
[1756308016427,0.61537368,112040.0,112030.0,0.3628]
[1756308016833,0.86537368,112040.0,112030.0,0.3628]
[1756308017133,1.70989368,112040.0,112030.0,0.3628]
[1756308017730,1.72989368,112040.0,112030.0,0.002]
[1756308019136,2.05989368,112040.0,112030.0,0.002]
[1756308019336,1.72989368,112040.0,112030.0,0.002]
[1756308019932,2.03989368,112040.0,112030.0,0.002]
[1756308020335,1.72989368,112040.0,112030.0,0.002]
[1756308020832,2.52889368,112040.0,112030.0,0.002]
[1756308021232,0.0892553,112020.0,112010.0,0.3608]
[1756308021442,0.60291745,112020.0,112010.0,0.3808]
[1756308021741,0.0892633,112010.0,112000.0,0.38055791]
[1756308022036,1.35199557,112010.0,112000.0,4e-05]
[1756308022430,1.34899557,112010.0,112000.0,4e-05]
[1756308022733,1.59499557,112010.0,112000.0,4e-05]
[1756308023125,2.43943557,112010.0,112000.0,4e-05]
[1756308023326,2.44143557,112010.0,112000.0,4e-05]
[1756308025234,2.44143557,112010.0,111980.0,0.3608]
[1756308025235,0.0892872,111980.0,111970.0,0.36898053]
[1756308025427,1.44742935,111980.0,111970.0,0.36898053]
[1756308025632,1.44742935,111980.0,111970.0,0.16037816]
[1756308025832,0.62294935,111980.0,111970.0,0.16037816]
[1756308026038,1.46742935,111980.0,111970.0,0.16037816]
[1756308026337,0.9537672,111980.0,111970.0,0.16037816]
[1756308026538,0.0892951,111970.0,111960.0,0.52117816]
[1756308026740,0.60295725,111970.0,111960.0,0.52117816]
[1756308028340,1.33375725,111970.0,111960.0,0.16037816]
[1756308028634,1.29586551,111970.0,111960.0,0.16037816]
[1756308028830,0.0893031,111960.0,111950.0,0.56940237]
[1756308029032,0.60296525,111960.0,111950.0,0.56940237]
[1756308029433,0.60296525,111960.0,111950.0,0.3608]
[1756308029931,0.60296525,111960.0,111950.0,0.3618]
[1756308030131,0.60296525,111960.0,111950.0,0.3628]
[1756308033843,1.44756525,111960.0,111950.0,0.3628]
[1756308034542,1.46756525,111960.0,111950.0,0.3628]
[1756308034746,0.62296525,111960.0,111950.0,0.3628]
[1756308035840,0.0893031,111960.0,111950.0,0.3628]
[1756308036140,0.0893031,111960.0,111950.0,0.7021111]
[1756308036341,0.0893031,111960.0,111950.0,1.21577325]
[1756308036741,0.0893031,111960.0,111950.0,2.06041325]
[1756308037042,0.0893031,111960.0,111950.0,1.5467511]
[1756308037243,0.0893031,111960.0,111950.0,2.06041325]
[1756308038043,0.0893031,111960.0,111950.0,1.5467511]
[1756308038245,0.0893031,111960.0,111950.0,1.45744]
[1756308038741,0.0893031,111960.0,111950.0,1.5467511]
[1756308041344,0.0893031,111960.0,111950.0,0.7021111]
[1756308041644,0.0893031,111960.0,111950.0,0.6128]
[1756308041849,0.60296525,111960.0,111950.0,1.4574]
[1756308042046,0.60296525,111960.0,111950.0,0.6128]
[1756308042349,0.60296525,111960.0,111950.0,0.3628]
[1756308043752,1.44756525,111960.0,111950.0,0.002]
[1756308043941,2.37836525,111960.0,111950.0,0.002]
[1756308045151,1.8647031,111960.0,111950.0,0.002]
[1756308045452,2.37836525,111960.0,111950.0,0.002]
[1756308045646,2.40836525,111960.0,111950.0,0.001]
[1756308045842,2.41236525,111960.0,111950.0,0.001]
[1756308046040,1.8987031,111960.0,111950.0,0.001]
[1756308046241,0.6933031,111960.0,111950.0,0.3618]
[1756308046442,1.86156525,111960.0,111950.0,0.3618]
[1756308046647,0.76696525,111960.0,111950.0,0.3608]
[1756308046843,1.0989031,111960.0,111950.0,0.3608]
[1756308047048,0.2543031,111960.0,111950.0,0.4501111]
[1756308047248,0.3259929,111960.0,111950.0,0.4501111]
[1756308047452,0.3259929,111960.0,111950.0,0.3608]
[1756308047654,0.3249929,111960.0,111950.0,0.3608]
[1756308047853,0.3269929,111960.0,111950.0,0.3608]
[1756308048246,0.84065505,111960.0,111950.0,0.3608]
[1756308048442,0.3269929,111960.0,111950.0,0.4501111]
[1756308048644,0.3229929,111960.0,111950.0,0.4501111]
[1756308048855,0.3249929,111960.0,111950.0,0.7001111]
[1756308049045,0.2533031,111960.0,111950.0,0.7001111]
[1756308049250,0.0933031,111960.0,111950.0,0.7001111]
[1756308049755,0.0923031,111960.0,111950.0,0.7001111]
[1756308050150,0.0923031,111960.0,111950.0,0.6108]
[1756308050451,0.60496525,111960.0,111950.0,0.6108]
[1756308050843,0.60496525,111960.0,111940.0,0.61049676]
[1756308050844,0.0893111,111950.0,111940.0,0.61049676]
[1756308051155,0.60297325,111950.0,111940.0,0.97129676]
[1756308051345,0.0893111,111950.0,111940.0,0.97129676]
[1756308053148,0.0903111,111950.0,111940.0,0.97129676]
[1756308053559,0.0893111,111950.0,111940.0,0.97129676]
[1756308053848,0.0913111,111950.0,111940.0,1.81585676]
[1756308054055,0.0913111,111950.0,111940.0,0.97129676]
[1756308054250,0.0913111,111950.0,111940.0,0.88197816]
[1756308054952,0.60497325,111950.0,111940.0,0.88197816]
[1756308055143,0.60497325,111950.0,111940.0,0.52117816]
[1756308055346,1.44849325,111950.0,111940.0,0.52117816]
[1756308055649,0.60397325,111950.0,111940.0,0.3608]
[1756308056556,0.0893191,111940.0,111930.0,0.56940237]
[1756308056749,0.60298125,111940.0,111930.0,0.56940237]
[1756308058155,0.60298125,111940.0,111930.0,0.65872947]
[1756308058355,0.60298125,111940.0,111930.0,0.4501271]
[1756308058663,0.60298125,111940.0,111930.0,0.52142182]
[1756308058849,0.60398125,111940.0,111930.0,0.52142182]
[1756308060259,0.60398125,111940.0,111930.0,0.3608]
[1756308061049,1.44850125,111940.0,111930.0,0.52142087]
[1756308061258,2.4272485,111940.0,111930.0,0.16062087]
[1756308061561,0.089327,111930.0,111920.0,0.05766081]
[1756308061758,0.089343,111910.0,111900.0,0.21913291]
[1756308062062,1.46544084,111910.0,111900.0,0.21913291]
[1756308062257,0.62096084,111910.0,111900.0,0.21913291]
[1756308062561,1.46544084,111910.0,111900.0,0.21913291]
[1756308062760,0.63288407,111910.0,111900.0,0.21913291]
[1756308062961,1.47736407,111910.0,111900.0,0.21913291]
[1756308063149,0.089351,111900.0,111890.0,0.3608]
[1756308063655,0.089351,111900.0,111890.0,0.450159]
[1756308063861,0.15823529,111900.0,111890.0,0.450159]
[1756308064163,0.15823529,111900.0,111890.0,0.3608]
[1756308064761,0.67189744,111900.0,111890.0,0.3608]
[1756308065161,0.15823529,111900.0,111890.0,0.3628]
[1756308065868,0.15823529,111900.0,111890.0,0.96582115]
[1756308066163,0.15823529,111900.0,111890.0,1.21682115]
[1756308066864,0.15823529,111900.0,111890.0,0.6138]
[1756308067067,0.15823529,111900.0,111890.0,0.3638]
[1756308069766,0.15823529,111900.0,111890.0,0.96682115]
[1756308069968,0.15823529,111900.0,111890.0,1.21682115]
[1756308070565,0.088351,111900.0,111890.0,1.21682115]
[1756308070969,0.02987892,111910.0,111890.0,1.21682115]
[1756308070970,0.11922752,111910.0,111900.0,0.089351]
[1756308071171,0.11922752,111910.0,111900.0,0.96381315]
[1756308072077,0.11922752,111910.0,111900.0,1.81525315]
[1756308073866,0.11922752,111910.0,111900.0,1.21224]
[1756308074068,0.11922752,111910.0,111900.0,0.450151]
[1756308075761,0.11922752,111910.0,111900.0,0.96381315]
[1756308076267,0.11922752,111910.0,111900.0,1.1722171]
[1756308076772,0.11922752,111910.0,111900.0,0.450151]
[1756308077269,0.0893307,111930.0,111920.0,0.0893308]
[1756308077473,0.0893307,111930.0,111920.0,1.81475295]
[1756308077671,0.0893307,111930.0,111920.0,2.06475295]
[1756308077867,0.0893307,111930.0,111920.0,2.06523715]
[1756308078566,0.10152091,111930.0,111920.0,1.12446215]
[1756308078772,0.10152091,111930.0,111920.0,1.46188]
[1756308079072,0.10352091,111930.0,111920.0,1.551215]
[1756308079769,0.10352091,111930.0,111920.0,0.700135]
[1756308079971,0.10352091,111930.0,111920.0,1.4614]
[1756308081373,0.10352091,111930.0,111920.0,2.42519715]
[1756308081566,0.10352091,111930.0,111920.0,2.42463715]
[1756308081770,0.10352091,111930.0,111920.0,0.9716]
[1756308082274,0.10352091,111930.0,111920.0,1.82156]
[1756308082876,0.10252091,111930.0,111920.0,1.82156]
[1756308083075,0.10152091,111930.0,111920.0,1.82156]
[1756308083877,0.10152091,111930.0,111920.0,1.910895]
[1756308084171,0.01119021,111930.0,111920.0,2.17455715]
[1756308084476,0.1186342,111940.0,111930.0,0.089327]
[1756308084676,0.1186342,111940.0,111930.0,0.96378915]
[1756308084878,0.1186342,111940.0,111930.0,0.450127]
[1756308085176,0.1186342,111940.0,111930.0,1.81294915]
[1756308085569,0.1206342,111940.0,111930.0,1.81294915]
[1756308085967,0.1226342,111940.0,111930.0,1.81294915]
[1756308086777,0.1226342,111940.0,111930.0,0.96378915]
[1756308086975,0.1226342,111940.0,111930.0,1.20924]
[1756308087176,0.1226342,111940.0,111930.0,1.81222915]
[1756308087475,0.1226342,111940.0,111930.0,1.298567]
[1756308087682,0.1226342,111940.0,111930.0,1.81222915]
[1756308087876,0.1206342,111940.0,111930.0,1.81222915]
[1756308088075,0.1216342,111940.0,111930.0,0.96378915]
[1756308088283,0.1216342,111940.0,111930.0,1.72302215]
[1756308088780,0.1216342,111940.0,111930.0,1.81234925]
[1756308089675,0.1216342,111940.0,111930.0,1.2986871]
[1756308089883,0.02094725,111940.0,111930.0,2.06234925]
[1756308090575,0.02094725,111940.0,111930.0,1.21378925]
[1756308090775,0.11026635,111940.0,111930.0,1.21378925]
[1756308090979,0.11026635,111940.0,111930.0,1.2984871]
[1756308091377,0.11026635,111940.0,111930.0,0.3608]
[1756308091686,0.11026635,111940.0,111930.0,1.209]
[1756308092183,0.11026635,111940.0,111930.0,0.3608]
[1756308092383,0.11026635,111940.0,111930.0,1.209]
[1756308092584,0.8739285,111940.0,111930.0,1.20876]
[1756308092778,0.8739285,111940.0,111930.0,0.3608]
[1756308092988,0.8939285,111940.0,111930.0,0.3608]
[1756308093688,1.47348817,111940.0,111930.0,0.3608]
[1756308093885,0.089327,111930.0,111920.0,1.22876293]
[1756308094086,0.60298915,111930.0,111920.0,0.38088293]
[1756308094692,0.089327,111930.0,111920.0,0.38088293]
[1756308095489,0.090327,111930.0,111920.0,0.38088293]
[1756308096393,0.090327,111930.0,111920.0,1.31749793]
[1756308096698,0.091327,111930.0,111920.0,1.31749793]
[1756308096892,0.003,111930.0,111920.0,1.83116008]
[1756308097195,0.003,111930.0,111920.0,2.44196008]
[1756308097394,0.003,111930.0,111920.0,2.45196008]
[1756308098198,0.00028445,111930.0,111920.0,2.43187715]
[1756308098492,0.00028445,111930.0,111920.0,2.45161389]
[1756308098697,0.00028445,111930.0,111920.0,2.45241389]
[1756308099598,0.0893192,111940.0,111930.0,0.089327]
[1756308099791,0.0893192,111940.0,111930.0,0.96378915]
[1756308100600,0.0893192,111940.0,111930.0,1.88345249]
[1756308100997,0.0893192,111940.0,111930.0,1.28042334]
[1756308101199,0.0893192,111940.0,111930.0,0.3608]
[1756308101400,0.0893192,111940.0,111930.0,1.20848]
[1756308101703,0.3393192,111940.0,111930.0,1.20848]
[1756308101895,0.36921773,111940.0,111930.0,1.20948]
[1756308102593,0.19743873,111940.0,111930.0,1.20948]
[1756308102897,0.81971481,111940.0,111930.0,0.3608]
[1756308103102,0.089327,111930.0,111920.0,1.20808]
[1756308103304,0.089327,111930.0,111920.0,1.3005398]
[1756308103999,0.089327,111930.0,111920.0,1.3898748]
[1756308104302,0.089327,111930.0,111920.0,1.81420195]
[1756308104696,0.089327,111930.0,111920.0,1.3005398]
[1756308105001,0.11928301,111930.0,111920.0,1.3005398]
[1756308105905,0.12028301,111930.0,111920.0,1.2999398]
[1756308106507,0.12128301,111930.0,111920.0,1.2999398]
[1756308107004,0.12128301,111930.0,111920.0,1.3892748]
[1756308107307,0.12128301,111930.0,111920.0,1.90293695]
[1756308107508,0.091327,111930.0,111920.0,1.90293695]
[1756308108002,0.88503498,111930.0,111920.0,1.2996198]
[1756308108202,0.37137283,111930.0,111920.0,1.2996198]
[1756308109302,0.37037283,111930.0,111920.0,1.2996198]
[1756308110106,0.37137283,111930.0,111920.0,1.2996198]
[1756308110509,0.42137283,111930.0,111920.0,1.2996198]
[1756308111406,0.42137283,111930.0,111920.0,0.4532598]
[1756308111614,0.90498915,111930.0,111920.0,0.4432598]
[1756308113111,0.141327,111930.0,111920.0,0.3608]
[1756308114909,0.96498915,111930.0,111920.0,0.3608]
[1756308115813,0.089335,111920.0,111910.0,0.38045555]
[1756308116114,0.60299715,111920.0,111910.0,0.46291535]
[1756308116514,0.75129715,111920.0,111910.0,0.46291535]
[1756308117106,0.089343,111910.0,111900.0,1.2076]
[1756308117312,0.089343,111910.0,111900.0,1.3376]
[1756308117513,0.089343,111910.0,111900.0,1.4200598]
[1756308118413,0.089343,111910.0,111900.0,0.5732598]
[1756308118607,0.089343,111910.0,111900.0,1.4198198]
[1756308119015,0.089343,111910.0,111900.0,1.4208198]
[1756308119318,0.089343,111910.0,111900.0,1.4218198]
[1756308120216,0.089343,111910.0,111900.0,1.4202598]
[1756308120414,0.089343,111910.0,111900.0,1.5096108]
[1756308120604,0.089343,111910.0,111900.0,2.27327295]
[1756308120812,0.0893417,111920.0,111910.0,0.0893394]
[1756308121017,0.0893417,111920.0,111910.0,0.95692195]
[1756308121320,0.0893417,111920.0,111910.0,1.2891798]
[1756308121522,0.0893417,111920.0,111910.0,0.4432598]
[1756308121819,0.95300385,111920.0,111910.0,0.4432598]
[1756308122013,0.0893417,111920.0,111910.0,0.4432598]
[1756308122411,0.0903417,111920.0,111910.0,0.4432598]
[1756308122718,0.0913417,111920.0,111910.0,0.4432598]
[1756308124020,0.4313417,111920.0,111910.0,0.4432598]
[1756308124219,0.94500385,111920.0,111910.0,0.4432598]
[1756308124416,1.19500385,111920.0,111910.0,0.0824598]
[1756308124608,0.93500385,111920.0,111910.0,0.0824598]
[1756308125617,1.78032385,111920.0,111910.0,0.0824598]
[1756308126316,1.2666617,111920.0,111910.0,0.0824598]
[1756308126514,1.78032385,111920.0,111910.0,0.0824598]
[1756308126717,0.93500385,111920.0,111910.0,0.0824598]
[1756308126922,0.4213417,111920.0,111910.0,0.0824598]
[1756308127218,0.1713417,111920.0,111910.0,0.0824598]
[1756308127419,0.0913417,111920.0,111910.0,0.95692195]
[1756308127818,0.0913417,111920.0,111910.0,0.4432598]
[1756308128120,0.0913417,111920.0,111910.0,0.0824598]
[1756308128523,0.60500385,111920.0,111910.0,0.0824598]
[1756308128926,0.97500385,111920.0,111910.0,0.0824598]
[1756308129221,0.1113417,111920.0,111910.0,0.0824598]
[1756308129421,0.4013417,111920.0,111910.0,0.0824598]
[1756308130024,0.0913417,111920.0,111910.0,0.0824598]
[1756308130224,0.0913417,111920.0,111910.0,0.5326028]
[1756308130525,0.0913417,111920.0,111910.0,0.4432598]
[1756308131520,0.0913417,111920.0,111910.0,1.04626495]
[1756308131726,0.0913417,111920.0,111910.0,2.05360195]
[1756308131925,0.0913417,111920.0,111910.0,2.14294495]
[1756308132225,0.0913417,111920.0,111910.0,2.14408226]
[1756308133025,0.002,111920.0,111910.0,2.14408226]
[1756308133326,0.001,111920.0,111910.0,1.63042011]
[1756308133521,0.001,111920.0,111910.0,2.14408226]
[1756308134025,0.001,111920.0,111910.0,2.14628226]
[1756308135217,0.01798936,111930.0,111920.0,0.089335]
[1756308135426,0.01798936,111930.0,111920.0,0.96379715]
[1756308135621,0.01798936,111930.0,111920.0,1.04625695]
[1756308135822,0.01798936,111930.0,111920.0,1.29625695]
[1756308136221,0.01798936,111930.0,111920.0,1.29739426]
[1756308136424,0.01898936,111930.0,111920.0,2.14595426]
[1756308136725,0.002,111930.0,111920.0,2.14595426]
[1756308137121,0.002,111930.0,111920.0,1.63229211]
[1756308137323,0.002,111930.0,111920.0,2.14595426]
[1756308137726,0.002,111930.0,111920.0,2.33559426]
[1756308138021,0.10067328,111950.0,111940.0,0.0893191]
[1756308138225,0.10067328,111950.0,111940.0,2.17379856]
[1756308138425,0.10067328,111950.0,111940.0,2.25625836]
[1756308138730,0.10067328,111950.0,111940.0,2.25613836]
[1756308142124,0.10067328,111950.0,111940.0,1.40817836]
[1756308142424,0.10067328,111950.0,111940.0,2.25765836]
[1756308143734,0.10067328,111950.0,111940.0,2.25709836]
[1756308143929,0.10067328,111950.0,111940.0,2.25677836]
[1756308145234,0.01135818,111950.0,111940.0,2.25677836]
[1756308145528,0.0893056,111960.0,111950.0,0.0893111]
[1756308145831,0.0893056,111960.0,111950.0,1.2983111]
[1756308146024,0.10008316,111960.0,111950.0,1.3807709]
[1756308146332,0.10008316,111960.0,111950.0,1.38190821]
[1756308146527,0.10008316,111960.0,111950.0,0.53370821]
[1756308146733,0.10008316,111960.0,111950.0,1.38194821]
[1756308147029,0.10208316,111960.0,111950.0,1.38170821]
[1756308147425,0.10208316,111960.0,111950.0,1.82051382]
[1756308147627,0.10308316,111960.0,111950.0,1.82051382]
[1756308147833,0.10308316,111960.0,111950.0,0.88320272]
[1756308148034,0.10308316,111960.0,111950.0,1.29223711]
[1756308149235,0.10308316,111960.0,111950.0,0.44439711]
[1756308149437,0.10308316,111960.0,111950.0,1.29223711]
[1756308149738,0.10308316,111960.0,111950.0,1.29175711]
[1756308150236,0.10308316,111960.0,111950.0,0.44439711]
[1756308150437,0.10308316,111960.0,111950.0,1.29163711]
[1756308151426,0.10308316,111960.0,111950.0,1.29127711]
[1756308151631,0.10308316,111960.0,111950.0,0.44439711]
[1756308151936,0.10308316,111960.0,111950.0,1.29099711]
[1756308152143,0.10308316,111960.0,111950.0,1.38030821]
[1756308152327,0.11308316,111960.0,111950.0,1.81911382]
[1756308152528,0.10308316,111960.0,111950.0,1.81911382]
[1756308152740,0.10308316,111960.0,111950.0,0.97251382]
[1756308152936,0.10308316,111960.0,111950.0,1.81871382]
[1756308154534,0.10308316,111960.0,111950.0,0.97251382]
[1756308154843,0.10308316,111960.0,111950.0,1.38010821]
[1756308155040,0.10308316,111960.0,111950.0,1.37966821]
[1756308155340,0.10308316,111960.0,111950.0,1.81847382]
[1756308155634,0.10308316,111960.0,111950.0,0.44439711]
[1756308155841,0.54188877,111960.0,111950.0,1.29027711]
[1756308156334,0.89188877,111960.0,111950.0,0.08359711]
[1756308156527,1.04018877,111960.0,111950.0,0.08359711]
[1756308157238,0.71018877,111960.0,111950.0,0.08359711]
[1756308157435,1.27018877,111960.0,111950.0,0.00113731]
[1756308158041,0.94018877,111960.0,111950.0,0.00113731]
[1756308158242,0.96018877,111960.0,111950.0,0.00113731]
[1756308158437,0.94018877,111960.0,111950.0,0.00113731]
[1756308158736,0.10308316,111960.0,111950.0,0.88320272]
[1756308158942,0.10308316,111960.0,111950.0,0.97251382]
[1756308160945,0.003,111960.0,111950.0,1.67131943]
[1756308161140,0.01071218,111980.0,111970.0,0.0892951]
[1756308161443,0.0892816,111990.0,111980.0,0.0892835]
[1756308161742,0.0892816,111990.0,111980.0,1.74052911]
[1756308161938,0.0892816,111990.0,111980.0,0.3608]
[1756308162136,0.0892816,111990.0,111980.0,1.65112561]
[1756308162342,0.77808721,111990.0,111980.0,0.36193731]
[1756308163238,0.79808721,111990.0,111980.0,0.00113731]
[1756308163438,0.85341771,111990.0,111980.0,0.00113731]
[1756308163736,0.87341771,111990.0,111980.0,0.00113731]
[1756308164342,0.88808783,111990.0,111980.0,0.00113731]
[1756308165241,1.22808783,111990.0,111980.0,0.00113731]
[1756308165545,0.89108783,111990.0,111980.0,0.00113731]
[1756308167046,1.74088783,111990.0,111980.0,0.00113731]
[1756308168551,1.22675172,111990.0,111980.0,0.00113731]
[1756308168846,0.37695172,111990.0,111980.0,0.36193731]
[1756308169047,0.10695172,111990.0,111980.0,0.45122451]
[1756308169250,0.01767012,111990.0,111980.0,2.07572062]
[1756308170038,0.007,111990.0,111980.0,2.07572062]
[1756308171143,0.003,111990.0,111980.0,2.07672062]
[1756308172251,0.003,111990.0,111980.0,1.56458451]
[1756308172446,0.003,111990.0,111980.0,2.07872062]
[1756308172652,0.01823248,112000.0,111990.0,0.0892792]
[1756308172849,0.01823248,112000.0,111990.0,1.15421531]
[1756308173046,0.01823248,112000.0,111990.0,2.00445531]
[1756308173356,0.10750368,112000.0,111990.0,2.00543262]
[1756308174550,0.01823248,112000.0,111990.0,2.00543262]
[1756308174749,0.01823248,112000.0,111990.0,2.00743262]
[1756308175453,0.01823248,112000.0,111990.0,2.00643262]
[1756308175653,0.10750368,112000.0,111990.0,2.00643262]
[1756308175846,0.10750368,112000.0,111990.0,2.00583262]
[1756308176753,0.10750368,112000.0,111990.0,2.0769819]
[1756308177153,0.01923248,112000.0,111990.0,2.0769819]
[1756308177556,0.10850368,112000.0,111990.0,2.0765819]
[1756308177752,0.10850368,112000.0,111990.0,1.56244579]
[1756308177956,0.10850368,112000.0,111990.0,2.0765819]
[1756308178359,0.10850368,112000.0,111990.0,1.2275019]
[1756308178545,0.10850368,112000.0,111990.0,1.1382227]
[1756308178751,0.10850368,112000.0,111990.0,2.0764619]
[1756308178952,0.10850368,112000.0,111990.0,1.2275019]
[1756308179258,0.10850368,112000.0,111990.0,2.0763819]
[1756308180455,0.10850368,112000.0,111990.0,1.2275019]
[1756308180760,0.10850368,112000.0,111990.0,1.56208579]
[1756308181056,0.10850368,112000.0,111990.0,2.0762219]
[1756308181755,0.001,112000.0,111990.0,1.56208579]
[1756308181955,0.001,112000.0,111990.0,2.0762219]
[1756308182757,0.001,112000.0,111990.0,2.34616142]
[1756308183153,0.001,112000.0,111990.0,0.98330531]
[1756308183357,0.001,112000.0,111990.0,2.34620142]
[1756308184062,0.0892474,112030.0,112020.0,0.0892553]
[1756308184256,0.4092474,112030.0,112020.0,2.17343141]
[1756308184452,0.4092474,112030.0,112020.0,2.17456872]
[1756308184657,0.42024267,112030.0,112020.0,1.66043261]
[1756308184859,0.42024267,112030.0,112020.0,2.17456872]
[1756308185459,0.42324267,112030.0,112020.0,1.66043261]
[1756308185655,0.42324267,112030.0,112020.0,0.72273731]
[1756308185861,0.67624267,112030.0,112020.0,0.36193731]
[1756308186060,1.18737878,112030.0,112020.0,0.36193731]
[1756308186261,0.67324267,112030.0,112020.0,0.36193731]
[1756308187163,0.67424267,112030.0,112020.0,0.36193731]
[1756308188166,0.67124267,112030.0,112020.0,0.36193731]
[1756308188372,0.67124267,112030.0,112020.0,0.36293731]
[1756308188854,0.67124267,112030.0,112020.0,0.36193731]
[1756308189059,0.67224267,112030.0,112020.0,0.36193731]
[1756308195473,1.11055503,112030.0,112020.0,0.36193731]
[1756308195665,0.67224267,112030.0,112020.0,0.36193731]
[1756308195969,0.67224267,112030.0,112020.0,0.88950497]
[1756308196466,0.70195717,112030.0,112020.0,0.88950497]
[1756308196865,0.67224267,112030.0,112020.0,0.88950497]
[1756308197065,0.42224267,112030.0,112020.0,0.88950497]
[1756308197268,0.45199298,112030.0,112020.0,0.81199261]
[1756308197459,0.33299527,112030.0,112020.0,1.51030497]
[1756308197670,0.06299527,112030.0,112020.0,1.51030497]
[1756308197968,0.10224257,112030.0,112020.0,1.51030497]
[1756308198271,0.01299527,112030.0,112020.0,1.51030497]
[1756308198473,0.002,112030.0,112020.0,1.51030497]
[1756308198675,0.0912473,112030.0,112020.0,1.51030497]
[1756308198972,0.0912473,112030.0,112020.0,0.73273731]
[1756308199171,0.55900692,112030.0,112020.0,1.58129731]
[1756308199370,0.12069456,112030.0,112020.0,1.58129731]
[1756308199565,0.12069456,112030.0,112020.0,1.58193731]
[1756308199771,0.63432445,112030.0,112020.0,1.58193731]
[1756308199971,1.00432445,112030.0,112020.0,0.37193731]
[1756308200167,0.63432445,112030.0,112020.0,0.37193731]
[1756308200473,0.12069456,112030.0,112020.0,0.37193731]